[Event "*** Titled Tuesday Blitz"]
[Site "Chess.com"]
[Date "2020.05.19"]
[Round "4"]
[White "GigaQuparadze"]
[Black "FedaMaster"]
[Result "1-0"]
[WhiteElo "2857"]
[BlackElo "2531"]
[TimeControl "180+1"]
[EndTime "12:38:35 PDT"]
[Termination "GigaQuparadze won by resignation"]

1. e4 {[%clk 0:03:00.9]} 1... d5 {[%clk 0:02:55.5]} 2. exd5 {[%clk 0:03:00.6]}
2... Qxd5 {[%clk 0:02:55.9]} 3. Nc3 {[%clk 0:03:01.5]} 3... Qd6 {[%clk 0:02:56]}
4. Nf3 {[%clk 0:03:02.4]} 4... Nf6 {[%clk 0:02:56.5]} 5. d4 {[%clk 0:03:03.3]}
5... Bg4 {[%clk 0:02:53.1]} 6. Bc4 {[%clk 0:03:02.8]} 6... e6 {[%clk 0:02:40.6]}
7. h3 {[%clk 0:02:44.1]} 7... Bxf3 {[%clk 0:02:24]} 8. Qxf3 {[%clk 0:02:45]}
8... Nc6 {[%clk 0:02:24.9]} 9. Be3 {[%clk 0:02:42.4]} 9... O-O-O {[%clk
0:01:59.7]} 10. O-O-O {[%clk 0:02:37.3]} 10... Qb4 {[%clk 0:01:54.2]} 11. Bb5
{[%clk 0:02:35.1]} 11... Nd5 {[%clk 0:00:58.6]} 12. Bxc6 {[%clk 0:02:21.8]}
12... Nxc3 {[%clk 0:00:58.8]} 13. Bxb7+ {[%clk 0:02:22.1]} 13... Kb8 {[%clk
0:00:58.5]} 14. bxc3 {[%clk 0:02:22.2]} 14... Qxc3 {[%clk 0:00:58.2]} 15. Rd3
{[%clk 0:02:21.8]} 15... Qa1+ {[%clk 0:00:41.1]} 16. Kd2 {[%clk 0:02:17.6]}
16... Bb4+ {[%clk 0:00:41.8]} 17. Ke2 {[%clk 0:02:05]} 17... Qxh1 {[%clk
0:00:40.5]} 18. Bd2 {[%clk 0:02:05.3]} 18... Bxd2 {[%clk 0:00:34.1]} 19. Kxd2
{[%clk 0:02:04.2]} 19... Qb1 {[%clk 0:00:23.1]} 20. Ba6 {[%clk 0:02:02]} 20...
Qb4+ {[%clk 0:00:13.2]} 21. Ke2 {[%clk 0:02:00.1]} 21... Rxd4 {[%clk 0:00:08.1]}
22. Rxd4 {[%clk 0:01:58.7]} 22... Qb6 {[%clk 0:00:03.4]} 23. Qd3 {[%clk
0:01:58.3]} 23... c6 {[%clk 0:00:03]} 24. Rd7 {[%clk 0:01:56.8]} 24... Ka8
{[%clk 0:00:03.4]} 25. Bb7+ {[%clk 0:01:56.3]} 25... Kb8 {[%clk 0:00:03.5]} 26.
Qd6+ {[%clk 0:01:56.1]} 1-0

[Event "*** Titled Tuesday Blitz"]
[Site "Chess.com"]
[Date "2020.05.19"]
[Round "4"]
[White "konradrutkowski"]
[Black "Mikhail_Golubev"]
[Result "0-1"]
[WhiteElo "2307"]
[BlackElo "2561"]
[TimeControl "180+1"]
[EndTime "12:38:35 PDT"]
[Termination "Mikhail_Golubev won by resignation"]

1. Nf3 {[%clk 0:03:00.9]} 1... d6 {[%clk 0:02:57.7]} 2. d4 {[%clk 0:02:59.3]}
2... Nf6 {[%clk 0:02:57.1]} 3. Nc3 {[%clk 0:02:56.9]} 3... g6 {[%clk 0:02:54.9]}
4. e4 {[%clk 0:02:53.3]} 4... Bg7 {[%clk 0:02:54.8]} 5. h3 {[%clk 0:02:53.4]}
5... O-O {[%clk 0:02:53]} 6. Be3 {[%clk 0:02:54]} 6... Nbd7 {[%clk 0:02:46.8]}
7. Be2 {[%clk 0:02:52.9]} 7... c6 {[%clk 0:02:44.9]} 8. a4 {[%clk 0:02:51.5]}
8... Qc7 {[%clk 0:02:43.1]} 9. O-O {[%clk 0:02:51.3]} 9... a5 {[%clk 0:02:35.5]}
10. Re1 {[%clk 0:02:50.1]} 10... e5 {[%clk 0:02:26.7]} 11. dxe5 {[%clk
0:02:29.2]} 11... dxe5 {[%clk 0:02:19.4]} 12. Bc4 {[%clk 0:02:29.3]} 12... h6
{[%clk 0:01:54.9]} 13. Qd2 {[%clk 0:02:23.8]} 13... Kh7 {[%clk 0:01:52.2]} 14.
Rad1 {[%clk 0:02:22.7]} 14... Nh5 {[%clk 0:01:31]} 15. Qd6 {[%clk 0:02:13.3]}
15... Qd8 {[%clk 0:01:07.5]} 16. g4 {[%clk 0:01:59.1]} 16... Nf4 {[%clk
0:01:02.1]} 17. Bxf4 {[%clk 0:01:54.7]} 17... exf4 {[%clk 0:01:02.1]} 18. e5
{[%clk 0:01:54.8]} 18... Qb6 {[%clk 0:00:36.9]} 19. Qe7 {[%clk 0:01:22.1]} 19...
Qb4 {[%clk 0:00:31.7]} 20. Bxf7 {[%clk 0:01:16.9]} 20... Qxe7 {[%clk 0:00:30.1]}
0-1

[Event "*** Titled Tuesday Blitz"]
[Site "Chess.com"]
[Date "2020.05.19"]
[Round "4"]
[White "DanielTitichoca"]
[Black "chessuriel"]
[Result "1-0"]
[WhiteElo "2342"]
[BlackElo "2171"]
[TimeControl "180+1"]
[EndTime "12:38:36 PDT"]
[Termination "DanielTitichoca won by resignation"]

1. Nf3 {[%clk 0:03:00.9]} 1... Nf6 {[%clk 0:02:58.9]} 2. c4 {[%clk 0:03:00.4]}
2... c5 {[%clk 0:02:58.2]} 3. Nc3 {[%clk 0:03:00.3]} 3... d5 {[%clk 0:02:58.6]}
4. cxd5 {[%clk 0:03:00]} 4... Nxd5 {[%clk 0:02:59.5]} 5. e4 {[%clk 0:02:53.9]}
5... Nb4 {[%clk 0:02:57.2]} 6. Bc4 {[%clk 0:02:48.7]} 6... N4c6 {[%clk
0:02:52.4]} 7. h3 {[%clk 0:02:43.4]} 7... e5 {[%clk 0:02:51.8]} 8. d3 {[%clk
0:02:41.8]} 8... Be7 {[%clk 0:02:50.8]} 9. a4 {[%clk 0:02:37.5]} 9... O-O {[%clk
0:02:49.2]} 10. O-O {[%clk 0:02:36.8]} 10... Na6 {[%clk 0:02:40.9]} 11. Be3
{[%clk 0:02:32.4]} 11... Nc7 {[%clk 0:02:33.3]} 12. Rc1 {[%clk 0:02:30.4]} 12...
b6 {[%clk 0:02:29.7]} 13. Nd5 {[%clk 0:02:29.4]} 13... Ne6 {[%clk 0:02:24.8]}
14. Ba2 {[%clk 0:02:22.7]} 14... Ned4 {[%clk 0:02:20.5]} 15. Nxe7+ {[%clk
0:02:13.7]} 15... Qxe7 {[%clk 0:02:18.8]} 16. Bd5 {[%clk 0:02:10.9]} 16... Nxf3+
{[%clk 0:02:10.8]} 17. Qxf3 {[%clk 0:02:09]} 17... Bb7 {[%clk 0:02:11.1]} 18.
Qg3 {[%clk 0:02:03.8]} 18... Kh8 {[%clk 0:01:37.6]} 19. f4 {[%clk 0:01:55.3]}
19... Nb4 {[%clk 0:01:29.5]} 20. Bc4 {[%clk 0:01:46]} 20... Rad8 {[%clk
0:01:24.6]} 21. fxe5 {[%clk 0:01:42.2]} 21... h6 {[%clk 0:00:32]} 22. Bxh6
{[%clk 0:01:30.7]} 22... gxh6 {[%clk 0:00:29.8]} 23. Rf6 {[%clk 0:01:30.8]} 1-0

[Event "*** Titled Tuesday Blitz"]
[Site "Chess.com"]
[Date "2020.05.19"]
[Round "4"]
[White "dennisodessa"]
[Black "Sesleria"]
[Result "1-0"]
[WhiteElo "2218"]
[BlackElo "1939"]
[TimeControl "180+1"]
[EndTime "12:38:42 PDT"]
[Termination "dennisodessa won by resignation"]

1. d4 {[%clk 0:03:00.8]} 1... d5 {[%clk 0:02:59.7]} 2. c4 {[%clk 0:03:00.6]}
2... c6 {[%clk 0:03:00]} 3. Nf3 {[%clk 0:03:00.5]} 3... Nf6 {[%clk 0:03:00.2]}
4. Nbd2 {[%clk 0:03:01.4]} 4... g6 {[%clk 0:02:56.3]} 5. e3 {[%clk 0:03:00.2]}
5... Bg7 {[%clk 0:02:35.6]} 6. Bd3 {[%clk 0:02:59.7]} 6... O-O {[%clk
0:02:34.6]} 7. O-O {[%clk 0:02:58.9]} 7... Nbd7 {[%clk 0:02:22.5]} 8. b3 {[%clk
0:02:58.7]} 8... e5 {[%clk 0:02:09.2]} 9. dxe5 {[%clk 0:02:48.5]} 9... Ng4
{[%clk 0:02:08.3]} 10. Bb2 {[%clk 0:02:26.7]} 10... Ndxe5 {[%clk 0:01:54.5]} 11.
Nxe5 {[%clk 0:02:22.7]} 11... Nxe5 {[%clk 0:01:51.5]} 12. Be2 {[%clk 0:02:22.5]}
12... dxc4 {[%clk 0:01:42.8]} 13. Nxc4 {[%clk 0:02:20.4]} 13... Nxc4 {[%clk
0:01:37]} 14. Bxg7 {[%clk 0:02:20.2]} 14... Kxg7 {[%clk 0:01:34.8]} 15. Bxc4
{[%clk 0:02:17.2]} 15... Qxd1 {[%clk 0:01:30.3]} 16. Rfxd1 {[%clk 0:02:14.9]}
16... Bf5 {[%clk 0:01:29.6]} 17. Rd6 {[%clk 0:02:02.4]} 17... Rad8 {[%clk
0:01:23.2]} 18. Rad1 {[%clk 0:02:02.7]} 18... Rxd6 {[%clk 0:01:16.1]} 19. Rxd6
{[%clk 0:02:03.6]} 19... Re8 {[%clk 0:00:42.4]} 20. b4 {[%clk 0:01:51.8]} 20...
Kf8 {[%clk 0:00:25.8]} 21. Rf6 {[%clk 0:01:38.7]} 21... Ke7 {[%clk 0:00:23.5]}
22. Rxf7+ {[%clk 0:01:37.8]} 22... Kd6 {[%clk 0:00:22.8]} 23. Rxb7 {[%clk
0:01:34.2]} 1-0

[Event "*** Titled Tuesday Blitz"]
[Site "Chess.com"]
[Date "2020.05.19"]
[Round "4"]
[White "OsorioFernando"]
[Black "poummba"]
[Result "0-1"]
[WhiteElo "2253"]
[BlackElo "2448"]
[TimeControl "180+1"]
[EndTime "12:38:44 PDT"]
[Termination "poummba won by resignation"]

1. e4 {[%clk 0:02:59.6]} 1... c5 {[%clk 0:02:59.8]} 2. Nc3 {[%clk 0:02:59.1]}
2... g6 {[%clk 0:03:00.7]} 3. g3 {[%clk 0:02:59.2]} 3... Bg7 {[%clk 0:03:01.1]}
4. Bg2 {[%clk 0:03:00]} 4... Nc6 {[%clk 0:03:01.4]} 5. d3 {[%clk 0:03:00.3]}
5... d6 {[%clk 0:03:00.3]} 6. Be3 {[%clk 0:03:00.2]} 6... Nf6 {[%clk 0:02:59.1]}
7. h3 {[%clk 0:02:59.7]} 7... Bd7 {[%clk 0:02:58.6]} 8. Qd2 {[%clk 0:02:59.6]}
8... Rb8 {[%clk 0:02:58.9]} 9. Nge2 {[%clk 0:02:59.5]} 9... b5 {[%clk
0:02:58.9]} 10. O-O {[%clk 0:02:58]} 10... b4 {[%clk 0:02:59.3]} 11. Nd1 {[%clk
0:02:57.8]} 11... O-O {[%clk 0:02:58.4]} 12. Bh6 {[%clk 0:02:57.7]} 12... Bxh6
{[%clk 0:02:55.3]} 13. Qxh6 {[%clk 0:02:58.6]} 13... Nd4 {[%clk 0:02:55.9]} 14.
Qd2 {[%clk 0:02:54.1]} 14... a5 {[%clk 0:02:49.4]} 15. Nc1 {[%clk 0:02:52.4]}
15... Bxh3 {[%clk 0:02:44.8]} 16. c3 {[%clk 0:02:39.4]} 16... Bxg2 {[%clk
0:02:44.7]} 17. Kxg2 {[%clk 0:02:37.9]} 17... bxc3 {[%clk 0:02:41.1]} 18. bxc3
{[%clk 0:02:37.1]} 18... Nc6 {[%clk 0:02:38.3]} 19. Rh1 {[%clk 0:02:34.4]} 19...
h5 {[%clk 0:02:29]} 20. Ne3 {[%clk 0:02:27.6]} 20... e6 {[%clk 0:02:19.9]} 21.
g4 {[%clk 0:02:26.8]} 21... Kg7 {[%clk 0:02:12.3]} 22. Ne2 {[%clk 0:02:22.9]}
22... Ne5 {[%clk 0:02:03.5]} 23. gxh5 {[%clk 0:02:01.7]} 23... Nxh5 {[%clk
0:02:04.4]} 24. f3 {[%clk 0:01:23.5]} 24... Qg5+ {[%clk 0:01:53.2]} 25. Kf2
{[%clk 0:01:22.1]} 25... Rb2 {[%clk 0:01:51.2]} 26. f4 {[%clk 0:00:50.6]} 26...
Nxf4 {[%clk 0:01:24.7]} 27. Nf5+ {[%clk 0:00:42.3]} 27... exf5 {[%clk
0:01:19.9]} 0-1

[Event "*** Titled Tuesday Blitz"]
[Site "Chess.com"]
[Date "2020.05.19"]
[Round "4"]
[White "SGchess01"]
[Black "kintoho"]
[Result "1-0"]
[WhiteElo "2725"]
[BlackElo "2439"]
[TimeControl "180+1"]
[EndTime "12:38:47 PDT"]
[Termination "SGchess01 won by resignation"]

1. Nf3 {[%clk 0:03:00.4]} 1... Nf6 {[%clk 0:02:57.8]} 2. g3 {[%clk 0:02:57.2]}
2... d5 {[%clk 0:02:57.5]} 3. Bg2 {[%clk 0:02:57.2]} 3... c6 {[%clk 0:02:58]} 4.
O-O {[%clk 0:02:57.3]} 4... Bf5 {[%clk 0:02:58.1]} 5. b3 {[%clk 0:02:57.9]} 5...
e6 {[%clk 0:02:58.3]} 6. Bb2 {[%clk 0:02:58.1]} 6... Be7 {[%clk 0:02:58.8]} 7.
c4 {[%clk 0:02:57]} 7... O-O {[%clk 0:02:58.3]} 8. d3 {[%clk 0:02:55.2]} 8... a5
{[%clk 0:02:57.7]} 9. a3 {[%clk 0:02:55.2]} 9... Nbd7 {[%clk 0:02:57.5]} 10.
Nbd2 {[%clk 0:02:55.4]} 10... Qb6 {[%clk 0:02:54.7]} 11. Ra2 {[%clk 0:02:53.7]}
11... Rfc8 {[%clk 0:02:53.7]} 12. Qa1 {[%clk 0:02:53.3]} 12... h6 {[%clk
0:02:47.7]} 13. Rc1 {[%clk 0:02:50.1]} 13... Qa6 {[%clk 0:02:45.5]} 14. Bd4
{[%clk 0:02:41.3]} 14... b5 {[%clk 0:02:43.4]} 15. cxb5 {[%clk 0:02:39.3]} 15...
cxb5 {[%clk 0:02:43.5]} 16. Rac2 {[%clk 0:02:38.6]} 16... Rxc2 {[%clk
0:02:42.3]} 17. Rxc2 {[%clk 0:02:39.5]} 17... Rc8 {[%clk 0:02:41.8]} 18. Rxc8+
{[%clk 0:02:39.5]} 18... Qxc8 {[%clk 0:02:41.5]} 19. Qb2 {[%clk 0:02:40.4]}
19... Qc7 {[%clk 0:02:33.9]} 20. h3 {[%clk 0:02:35.9]} 20... Bf8 {[%clk
0:02:30.1]} 21. Ne5 {[%clk 0:02:33.8]} 21... Nxe5 {[%clk 0:02:28.3]} 22. Bxe5
{[%clk 0:02:34.7]} 22... Qc5 {[%clk 0:02:28.1]} 23. a4 {[%clk 0:02:26.8]} 23...
bxa4 {[%clk 0:02:25.4]} 24. bxa4 {[%clk 0:02:27.7]} 24... Qb4 {[%clk 0:02:20.2]}
25. Qxb4 {[%clk 0:02:22.1]} 25... Bxb4 {[%clk 0:02:16.2]} 26. Nb3 {[%clk
0:02:22.1]} 26... Nd7 {[%clk 0:02:14.2]} 27. Bc7 {[%clk 0:02:21.9]} 27... Kf8
{[%clk 0:02:00.2]} 28. Nxa5 {[%clk 0:02:19.1]} 28... Bxa5 {[%clk 0:01:50.9]} 29.
Bxa5 {[%clk 0:02:18.6]} 29... Ke7 {[%clk 0:01:50.1]} 30. Bc7 {[%clk 0:02:16.8]}
30... Nc5 {[%clk 0:01:48.8]} 31. a5 {[%clk 0:02:16.1]} 31... Kd7 {[%clk
0:01:49.1]} 32. Bb6 {[%clk 0:02:15.3]} 32... Kc6 {[%clk 0:01:48.8]} 33. f4
{[%clk 0:02:12.1]} 33... Nb3 {[%clk 0:01:46.3]} 34. e4 {[%clk 0:02:09.4]} 34...
Bh7 {[%clk 0:01:38.8]} 35. Kf2 {[%clk 0:02:05.8]} 35... f5 {[%clk 0:01:36.3]}
36. exd5+ {[%clk 0:02:04.1]} 36... exd5 {[%clk 0:01:36.6]} 37. Ke3 {[%clk
0:02:03.5]} 37... Bg8 {[%clk 0:01:36.9]} 38. d4 {[%clk 0:01:57.2]} 38... Be6
{[%clk 0:01:31.8]} 39. Bf1 {[%clk 0:01:56.8]} 39... Bc8 {[%clk 0:01:27.5]} 40.
Bd8 {[%clk 0:01:56.8]} 40... Kd7 {[%clk 0:01:19.8]} 41. Bb6 {[%clk 0:01:55.6]}
41... Kc6 {[%clk 0:01:20]} 42. Bd3 {[%clk 0:01:54.6]} 42... g6 {[%clk
0:01:18.5]} 43. Bc2 {[%clk 0:01:54.4]} 43... Na1 {[%clk 0:01:17.6]} 44. Ba4+
{[%clk 0:01:54.4]} 44... Kd6 {[%clk 0:01:15.9]} 45. Kd2 {[%clk 0:01:52]} 45...
Ba6 {[%clk 0:01:10.5]} 46. Kc3 {[%clk 0:01:52.1]} 46... Bf1 {[%clk 0:01:02.9]}
47. h4 {[%clk 0:01:52.1]} 47... Bc4 {[%clk 0:00:57.8]} 48. Kb2 {[%clk
0:01:51.2]} 48... Bb5 {[%clk 0:00:56.9]} 49. Bxb5 {[%clk 0:01:50.4]} 1-0

[Event "*** Titled Tuesday Blitz"]
[Site "Chess.com"]
[Date "2020.05.19"]
[Round "4"]
[White "SaqoChess_Twitch"]
[Black "Nikolaj_6"]
[Result "1-0"]
[WhiteElo "2402"]
[BlackElo "2566"]
[TimeControl "180+1"]
[EndTime "12:38:52 PDT"]
[Termination "SaqoChess_Twitch won by resignation"]

1. d4 {[%clk 0:03:00.9]} 1... Nf6 {[%clk 0:02:59.5]} 2. c4 {[%clk 0:03:01.4]}
2... e6 {[%clk 0:02:59.1]} 3. Nc3 {[%clk 0:03:02]} 3... Bb4 {[%clk 0:02:58.1]}
4. a3 {[%clk 0:03:02.5]} 4... Bxc3+ {[%clk 0:02:58]} 5. bxc3 {[%clk 0:03:03.4]}
5... c5 {[%clk 0:02:56.4]} 6. e3 {[%clk 0:03:03.6]} 6... O-O {[%clk 0:02:55.6]}
7. Bd3 {[%clk 0:03:03.9]} 7... d5 {[%clk 0:02:53.5]} 8. cxd5 {[%clk 0:03:01.9]}
8... exd5 {[%clk 0:02:52.6]} 9. Ne2 {[%clk 0:03:02.4]} 9... b6 {[%clk
0:02:52.1]} 10. O-O {[%clk 0:03:02.9]} 10... Ba6 {[%clk 0:02:49.8]} 11. Ng3
{[%clk 0:03:02.2]} 11... Re8 {[%clk 0:02:46.2]} 12. f3 {[%clk 0:03:00.6]} 12...
Bxd3 {[%clk 0:02:44.6]} 13. Qxd3 {[%clk 0:03:01.5]} 13... c4 {[%clk 0:02:44.5]}
14. Qc2 {[%clk 0:02:59.1]} 14... h5 {[%clk 0:02:43.6]} 15. Re1 {[%clk
0:02:51.9]} 15... h4 {[%clk 0:02:42.2]} 16. Nh1 {[%clk 0:02:51.9]} 16... Nc6
{[%clk 0:02:34.5]} 17. Nf2 {[%clk 0:02:47.6]} 17... Na5 {[%clk 0:02:17.6]} 18.
e4 {[%clk 0:02:42.4]} 18... Nb3 {[%clk 0:02:17.8]} 19. Rb1 {[%clk 0:02:42.8]}
19... dxe4 {[%clk 0:02:08.1]} 20. fxe4 {[%clk 0:02:41.6]} 20... Qd7 {[%clk
0:02:04.8]} 21. Bg5 {[%clk 0:02:33.8]} 21... Ng4 {[%clk 0:01:57.7]} 22. Bxh4
{[%clk 0:02:32.3]} 22... Nxf2 {[%clk 0:01:55.5]} 23. Qxf2 {[%clk 0:02:31.4]}
23... Qg4 {[%clk 0:01:50.5]} 24. h3 {[%clk 0:02:28.9]} 24... Qg6 {[%clk
0:01:47.2]} 25. e5 {[%clk 0:02:20.5]} 25... Qd3 {[%clk 0:01:38.2]} 26. Rbd1
{[%clk 0:02:15.8]} 26... Qxc3 {[%clk 0:01:36.3]} 27. Re3 {[%clk 0:02:16]} 27...
Qa5 {[%clk 0:01:28.3]} 28. Rg3 {[%clk 0:02:14.2]} 28... Re6 {[%clk 0:01:17.3]}
29. Rf1 {[%clk 0:01:45.8]} 29... Rf8 {[%clk 0:01:13.1]} 30. Rxg7+ {[%clk
0:01:38.5]} 30... Kxg7 {[%clk 0:01:12.4]} 31. Bf6+ {[%clk 0:01:38.5]} 31... Rxf6
{[%clk 0:01:08.7]} 32. Qxf6+ {[%clk 0:01:34.7]} 32... Kh7 {[%clk 0:01:07.4]} 33.
Qh4+ {[%clk 0:01:27.1]} 33... Kg8 {[%clk 0:01:02.8]} 34. Qg5+ {[%clk 0:01:08.6]}
34... Kh7 {[%clk 0:01:02.7]} 35. Rf6 {[%clk 0:01:09.2]} 35... Qe1+ {[%clk
0:00:59]} 36. Kh2 {[%clk 0:01:09.3]} 1-0

[Event "*** Titled Tuesday Blitz"]
[Site "Chess.com"]
[Date "2020.05.19"]
[Round "4"]
[White "LizaSolovyova"]
[Black "ChEsper99"]
[Result "1-0"]
[WhiteElo "2549"]
[BlackElo "2047"]
[TimeControl "180+1"]
[EndTime "12:38:54 PDT"]
[Termination "LizaSolovyova won by resignation"]

1. d4 {[%clk 0:03:00.9]} 1... Nf6 {[%clk 0:02:59.9]} 2. Nc3 {[%clk 0:02:58.5]}
2... e6 {[%clk 0:03:00.2]} 3. e4 {[%clk 0:02:53.4]} 3... d5 {[%clk 0:02:46.5]}
4. Bg5 {[%clk 0:02:52.7]} 4... dxe4 {[%clk 0:02:37.5]} 5. f3 {[%clk 0:02:51.3]}
5... exf3 {[%clk 0:02:34.9]} 6. Nxf3 {[%clk 0:02:50.7]} 6... Be7 {[%clk
0:02:33.5]} 7. Bd3 {[%clk 0:02:50]} 7... b6 {[%clk 0:02:30.4]} 8. Qe2 {[%clk
0:02:46.9]} 8... Bb7 {[%clk 0:02:29.9]} 9. O-O-O {[%clk 0:02:46.1]} 9... Nbd7
{[%clk 0:02:29.6]} 10. h4 {[%clk 0:02:34.3]} 10... h6 {[%clk 0:02:20.7]} 11. Bf4
{[%clk 0:02:31.7]} 11... Bd6 {[%clk 0:02:14.3]} 12. Ne5 {[%clk 0:02:26.8]} 12...
Qe7 {[%clk 0:02:04.4]} 13. Rhf1 {[%clk 0:02:20.9]} 13... O-O-O {[%clk
0:01:59.9]} 14. Ba6 {[%clk 0:02:17.1]} 14... Nd5 {[%clk 0:01:52.4]} 15. Nc6
{[%clk 0:01:51.2]} 15... Qxh4 {[%clk 0:01:39]} 16. Bxd6 {[%clk 0:01:48.2]} 16...
cxd6 {[%clk 0:01:36.6]} 17. Qc4 {[%clk 0:01:28.6]} 17... Ne3 {[%clk 0:00:39]}
18. Nxa7+ {[%clk 0:01:15.9]} 18... Kb8 {[%clk 0:00:37.5]} 19. Nc6+ {[%clk
0:01:15.5]} 19... Ka8 {[%clk 0:00:31.3]} 20. Qa4 {[%clk 0:01:14.4]} 20... Nb8
{[%clk 0:00:20.6]} 21. Bb5+ {[%clk 0:01:09]} 21... Ba6 {[%clk 0:00:20.1]} 22.
Bxa6 {[%clk 0:01:08.3]} 1-0

[Event "*** Titled Tuesday Blitz"]
[Site "Chess.com"]
[Date "2020.05.19"]
[Round "4"]
[White "Camels1981"]
[Black "AnthonyWirig"]
[Result "1/2-1/2"]
[WhiteElo "2352"]
[BlackElo "2665"]
[TimeControl "180+1"]
[EndTime "12:38:58 PDT"]
[Termination "Game drawn by repetition"]

1. e4 {[%clk 0:02:58.2]} 1... c5 {[%clk 0:02:56.2]} 2. Nf3 {[%clk 0:02:57.6]}
2... e6 {[%clk 0:02:56.1]} 3. d4 {[%clk 0:02:56.6]} 3... cxd4 {[%clk 0:02:57]}
4. Nxd4 {[%clk 0:02:57]} 4... a6 {[%clk 0:02:57.5]} 5. Nc3 {[%clk 0:02:56.8]}
5... Qc7 {[%clk 0:02:57.9]} 6. Be3 {[%clk 0:02:57.2]} 6... Bb4 {[%clk
0:02:57.4]} 7. Qd3 {[%clk 0:02:55.6]} 7... Nf6 {[%clk 0:02:51.3]} 8. a3 {[%clk
0:02:54]} 8... Bxc3+ {[%clk 0:02:50.2]} 9. bxc3 {[%clk 0:02:53.3]} 9... d6
{[%clk 0:02:19.8]} 10. Rd1 {[%clk 0:02:43.8]} 10... Nbd7 {[%clk 0:02:10.8]} 11.
Nb3 {[%clk 0:02:43]} 11... Ne5 {[%clk 0:02:01.2]} 12. Qxd6 {[%clk 0:02:41.6]}
12... Qxd6 {[%clk 0:01:56.2]} 13. Rxd6 {[%clk 0:02:42.5]} 13... Nxe4 {[%clk
0:01:55]} 14. Rd4 {[%clk 0:02:34.5]} 14... Nxc3 {[%clk 0:01:41.2]} 15. Bc4
{[%clk 0:02:30.8]} 15... b5 {[%clk 0:01:29.4]} 16. Bd3 {[%clk 0:02:27.8]} 16...
Bb7 {[%clk 0:01:19.7]} 17. O-O {[%clk 0:02:26.3]} 17... Nxd3 {[%clk 0:01:19]}
18. Rxd3 {[%clk 0:02:25.7]} 18... Na4 {[%clk 0:01:07]} 19. Nc5 {[%clk
0:02:24.9]} 19... Nxc5 {[%clk 0:01:06.5]} 20. Bxc5 {[%clk 0:02:25.8]} 20... Bd5
{[%clk 0:01:06.4]} 21. Re1 {[%clk 0:02:21.8]} 21... O-O-O {[%clk 0:01:00.9]} 22.
a4 {[%clk 0:02:07]} 22... bxa4 {[%clk 0:00:52.8]} 23. Rc3 {[%clk 0:02:07]} 23...
Kd7 {[%clk 0:00:50]} 24. Ra1 {[%clk 0:02:01]} 24... Rb8 {[%clk 0:00:47]} 25. f3
{[%clk 0:01:59.3]} 25... Rhc8 {[%clk 0:00:39.7]} 26. Rxa4 {[%clk 0:01:58.5]}
26... Rb5 {[%clk 0:00:39.9]} 27. Bd4 {[%clk 0:01:56.6]} 27... Rxc3 {[%clk
0:00:39.2]} 28. Bxc3 {[%clk 0:01:57.5]} 28... Rc5 {[%clk 0:00:31.9]} 29. Bxg7
{[%clk 0:01:56.8]} 29... Rxc2 {[%clk 0:00:29.5]} 30. Rxa6 {[%clk 0:01:56.7]}
30... h5 {[%clk 0:00:25.4]} 31. Rb6 {[%clk 0:01:55.6]} 31... f5 {[%clk
0:00:18.3]} 32. Rb2 {[%clk 0:01:55.2]} 32... Rxb2 {[%clk 0:00:16.3]} 33. Bxb2
{[%clk 0:01:54.3]} 33... Ke7 {[%clk 0:00:15.9]} 34. Kf2 {[%clk 0:01:53.9]} 34...
Kf7 {[%clk 0:00:16.8]} 35. Kg3 {[%clk 0:01:53.2]} 35... Kg6 {[%clk 0:00:17]} 36.
Kf4 {[%clk 0:01:53.3]} 36... Bc4 {[%clk 0:00:17.3]} 37. g3 {[%clk 0:01:52.2]}
37... Bd5 {[%clk 0:00:17.4]} 38. Bc3 {[%clk 0:01:51.1]} 38... Bc6 {[%clk
0:00:17.5]} 39. Bd4 {[%clk 0:01:51.1]} 39... Bd5 {[%clk 0:00:18]} 40. Bc3 {[%clk
0:01:51.3]} 40... Bc6 {[%clk 0:00:18.3]} 41. Bd4 {[%clk 0:01:51.5]} 41... Bd5
{[%clk 0:00:18.8]} 42. Bc3 {[%clk 0:01:51.6]} 1/2-1/2

[Event "*** Titled Tuesday Blitz"]
[Site "Chess.com"]
[Date "2020.05.19"]
[Round "4"]
[White "Djager97"]
[Black "WonderChampion"]
[Result "1-0"]
[WhiteElo "2358"]
[BlackElo "1932"]
[TimeControl "180+1"]
[EndTime "12:39:04 PDT"]
[Termination "Djager97 won by resignation"]

1. e4 {[%clk 0:03:00.9]} 1... c5 {[%clk 0:02:59.6]} 2. Nf3 {[%clk 0:03:00.7]}
2... g6 {[%clk 0:02:59.8]} 3. d4 {[%clk 0:03:00.9]} 3... cxd4 {[%clk 0:02:59.6]}
4. Nxd4 {[%clk 0:03:01.8]} 4... Nc6 {[%clk 0:02:59.8]} 5. Nc3 {[%clk 0:03:01.9]}
5... Bg7 {[%clk 0:02:59.9]} 6. Nb3 {[%clk 0:03:02.5]} 6... Nf6 {[%clk
0:02:59.2]} 7. Be2 {[%clk 0:03:02.9]} 7... O-O {[%clk 0:02:58.5]} 8. O-O {[%clk
0:03:03.4]} 8... d6 {[%clk 0:02:57.2]} 9. Bg5 {[%clk 0:03:02.3]} 9... Be6 {[%clk
0:02:52.1]} 10. Kh1 {[%clk 0:03:00.9]} 10... a6 {[%clk 0:02:41.2]} 11. f4 {[%clk
0:03:00.2]} 11... b5 {[%clk 0:02:33.9]} 12. Bf3 {[%clk 0:03:00.1]} 12... Rc8
{[%clk 0:02:29.4]} 13. Nd5 {[%clk 0:02:52.2]} 13... Bxd5 {[%clk 0:02:13.9]} 14.
exd5 {[%clk 0:02:52]} 14... Na7 {[%clk 0:02:13.8]} 15. c3 {[%clk 0:02:34.1]}
15... Qb6 {[%clk 0:02:04.8]} 16. Nd4 {[%clk 0:02:27.9]} 16... a5 {[%clk
0:01:54.9]} 17. Re1 {[%clk 0:02:18.6]} 17... Qb7 {[%clk 0:01:50.2]} 18. Nc6
{[%clk 0:02:13.4]} 18... Nxc6 {[%clk 0:01:47]} 19. dxc6 {[%clk 0:02:14.3]} 19...
Qc7 {[%clk 0:01:46.4]} 20. a4 {[%clk 0:02:04.2]} 20... bxa4 {[%clk 0:01:36.7]}
21. Qxa4 {[%clk 0:02:01.5]} 21... Ra8 {[%clk 0:01:30.3]} 22. b4 {[%clk
0:01:50.9]} 22... Rfc8 {[%clk 0:01:15.4]} 23. b5 {[%clk 0:01:37.7]} 23... Rcb8
{[%clk 0:01:11.2]} 24. Rab1 {[%clk 0:01:35.6]} 24... Rb6 {[%clk 0:01:06.8]} 25.
Bh4 {[%clk 0:01:33.4]} 25... e6 {[%clk 0:00:54.3]} 26. Bf2 {[%clk 0:01:29.6]}
26... Rbb8 {[%clk 0:00:51.1]} 27. b6 {[%clk 0:01:27.7]} 27... Qe7 {[%clk
0:00:50.6]} 28. c7 {[%clk 0:01:26.7]} 28... Qd7 {[%clk 0:00:44.1]} 29. Qxd7
{[%clk 0:01:24.3]} 29... Nxd7 {[%clk 0:00:42.9]} 30. Bxa8 {[%clk 0:01:21.4]}
30... Rxa8 {[%clk 0:00:42.4]} 31. b7 {[%clk 0:01:20.4]} 31... Re8 {[%clk
0:00:33.4]} 32. c8=Q {[%clk 0:01:19.6]} 32... Rxc8 {[%clk 0:00:33]} 33. bxc8=Q+
{[%clk 0:01:19.7]} 1-0